Cogmind - Beta 15 @@@ ROGUE MODE // 2025.06.07 @ 13:30:05 Player: puppuppit Result: Destroyed by Y-54 Guardian with Gatling Laser Performance ------------- Evolutions (0) 0 Regions Visited (3) 600 Robots Destroyed (39) 195 Value Destroyed (874) 874 Prototype IDs (0) 0 Alien Tech Used (0) 0 Bonus (0) 0 TOTAL SCORE: 1669 Bonus ------- None Cogmind --------- Core Integrity 0/250 Matter 83/300 Energy 100/100 System Corruption 4% Temperature Cool (22) Movement Treading (160) Location -7/Recycling Parts ------- > --- POWER (1) -------- Subdweller Power Source > --- PROPULSION (2) --- Light Treads Light Treads > --- UTILITY (2) ------ Large Storage Unit Weapon Shielding > --- WEAPON (2) ------- Barrage Gun Subdweller Shrapnel Launcher > --- INVENTORY (15) --- Subdweller Power Source Subdweller Power Source Light Treads Light Treads Subdweller Optics Improved Terrain Scanner Light Assault Rifle Light Assault Rifle Light Assault Rifle Subdweller Machine Gun Subdweller Machine Gun Subdweller Machine Gun Multitool Peak State ------------ > --- POWER ------------ Subdweller Power Source > --- PROPULSION ------- Light Treads Light Treads > --- UTILITY ---------- Large Storage Unit Improved Terrain Scanner > --- WEAPON ----------- Subdweller Machine Gun Barrage Gun > --- INVENTORY -------- Subdweller Power Source Subdweller Power Source Light Treads Light Treads Light Treads Subdweller Optics Weapon Shielding Light Assault Rifle Light Assault Rifle Light Assault Rifle Subdweller Machine Gun Grenade Launcher Subdweller Shrapnel Launcher Multitool Piercing Trap [Rating: 15] Favorites ----------- Power Subdweller Power Source Engine Subdweller Power Source Power Core Light Nuclear Core Propulsion Light Treads Treads Light Treads Utility Improved Terrain Scanner Device Improved Terrain Scanner Storage Large Storage Unit Protection Light Armor Plating Weapon Light Assault Rifle Ballistic Gun Light Assault Rifle Launcher Grenade Launcher Build | -11 -10 -10 -7 ------- Run | Yrd Mat Sub Rec Slots Evolved . | . . . . Power . | . . . . Propulsion . | . . . . Utility . | . . . . Weapon . | . . . . Parts Attached 28 | 8 7 13 . Power 5 | 1 2 2 . Engine 4 | 1 1 2 . Core 1 | . 1 . . Reactor . | . . . . Propulsion 4 | 2 . 2 . Treads 4 | 2 . 2 . Leg . | . . . . Wheel . | . . . . Hover . | . . . . Flight . | . . . . Utility 8 | 2 3 3 . Device 2 | 1 . 1 . Storage 3 | 1 2 . . Processor . | . . . . Hackware . | . . . . Protection 3 | . 1 2 . Artifact . | . . . . Weapon 11 | 3 2 6 . Energy Gun . | . . . . Energy Cannon . | . . . . Ballistic Gun 9 | 3 1 5 . Ballistic Cannon . | . . . . Launcher 2 | . 1 1 . Special Weapon . | . . . . Impact Weapon . | . . . . Slashing Weapon . | . . . . Piercing Weapon . | . . . . Special Melee Weapon . | . . . . Unidentified Prototypes . | . . . . Parts Lost 9 | . 3 6 . Power 2 | . 1 1 . Propulsion 2 | . . 2 . Utility 2 | . . 2 . Weapon 3 | . 2 1 . Highest Loss Streak 3 | . 2 3 . To Critical Strikes . | . . . . Average Backups 11 | . 9 13 13 Power . | . . 1 2 Propulsion 2 | . 3 2 2 Utility 2 | . 2 2 2 Weapon 4 | . 3 5 6 Tool/Special . | . . . . Unused Backups 11 | . 3 1 7 Power 2 | . . . 2 Propulsion 2 | . . . 2 Utility 5 | . 3 1 1 Weapon 1 | . . . 1 Tool/Special 1 | . . . 1 Average Slot Usage (%) 97 | . 94 99 100 Engine 10 | . 7 13 14 Core 1 | . 1 . . Treads 27 | . 28 27 28 Device 11 | . 11 10 . Storage 14 | . 14 14 14 Protection 2 | . 2 3 14 Ballistic Gun 26 | . 27 26 14 Launcher 1 | . . 1 14 Peak Build Rating 15 | 9 10 15 13 Average Rating 10 | 6 9 12 13 On Entrance 8 | . 9 10 13 Naked Turns . | . . . . Heaviest Build 37 | 13 30 37 37 Greatest Support 40 | 40 40 40 40 Greatest Overweight (x) . | . . . . Average Overweight (x) . | . . . . Largest Inventory Capacity 15 | 8 15 15 15 Average Capacity 13 | 7 11 15 15 Most Carried 15 | 2 13 15 13 Average Carried 11 | . 9 14 13 Final Capacity 15 | 8 15 15 15 Final Carried 13 | 2 13 13 13 Class Distribution -------------------- 100% | Mutant Dominant Class ---------------- Mutant | -10/Materials Mutant | -10/Subcaves Mutant | -7/Recycling Resources | -11 -10 -10 -7 ----------- Run | Yrd Mat Sub Rec Matter Collected 1319 | 340 561 418 . Remotely . | . . . . Salvage Created 1099 | 167 733 199 . Parts 77 | 17 47 13 . Haulers Intercepted 2 | . 2 . . Recyclers Shooed 1 | 1 . . . Parts Field Recycled . | . . . . Retrieved Matter . | . . . . Parts Self-Destructed 9 | . . 9 . Prevented . | . . . . Kills | -11 -10 -10 -7 ------- Run | Yrd Mat Sub Rec Combat Hostiles Destroyed 23 | . 15 8 . Guns 17 | . 12 5 . AOE 6 | . 3 3 . Classes Destroyed 9 | 3 5 1 . Worker 4 | 2 2 . . Builder 2 | . 2 . . Tunneler 4 | 4 . . . Hauler 2 | . 2 . . Recycler 1 | 1 . . . Watcher 3 | . 3 . . Swarmer 4 | . 3 1 . Grunt 13 | . 12 1 . Subdweller 6 | . . 6 . Best Kill Streak 5 | 3 5 3 . Combat Bots Only 3 | . 3 3 . Max Kills in Single Turn 2 | 1 2 1 . Gunslinging . | . . . . Exploded 2 | . 2 1 . Melee . | . . . . Uniques/NPCs Destroyed . | . . . . Combat | -11 -10 -10 -7 -------- Run | Yrd Mat Sub Rec Hostile Shots Fired 155 | . 80 54 21 Missed 41 | . 23 15 3 Hits 114 | . 57 39 18 Projectile 114 | . 57 39 18 AOE 1 | . . 1 . Critical Strikes 2 | . 2 . . Damage Taken 1586 | . 695 763 128 Core 257 | . 89 151 17 Absorbed by Shields . | . . . . Redirected to Shielding 27 | . . 18 9 Core Remaining (%) 100 | 100 . . . Volleys Fired 156 | 24 79 51 2 Largest 2 | 2 2 2 1 Hottest 60 | 40 50 60 40 Shots Fired 290 | 48 156 84 2 Gun 268 | 48 154 66 . Cannon . | . . . . Launcher 22 | . 2 18 2 Special . | . . . . Kinetic 271 | 48 154 67 2 Thermal . | . . . . Explosive 19 | . 2 17 . Electromagnetic . | . . . . Robot Hit Streak 20 | 6 15 20 . Robot Miss Streak 9 | 5 9 3 . Penetration Max . | . . . . Secondary Targets 1 | . 1 . . Max Gunslinging Chain 1 | . 1 . . Shots Hit Robots 163 | 27 96 40 . Core Hits 70 | 10 42 15 3 Critical Kills 1 | . . 1 . Critical Parts Destroyed 1 | . . 1 . Critical Strikes 2 | . . 2 . Destroy 2 | . . 2 . Melee Attacks . | . . . . Impact . | . . . . Slashing . | . . . . Piercing . | . . . . Sneak Attacks . | . . . . Combat Hostiles . | . . . . Follow-up Attacks . | . . . . Damage Inflicted 2612 | 262 1237 1022 91 Guns 1792 | 262 1074 456 . Cannons . | . . . . Explosions 820 | . 163 566 91 Melee . | . . . . Ramming . | . . . . Kinetic 1883 | 262 1074 456 91 Thermal . | . . . . Explosive 729 | . 163 566 . Electromagnetic . | . . . . Impact . | . . . . Slashing . | . . . . Piercing . | . . . . Highest Corruption 4 | . 4 4 4 Average Corruption 3 | . 3 4 4 Corruption Purged . | . . . . Corruption Blocked . | . . . . Effects 40 | . 10 30 . Message Errors 10 | . 3 7 . Matter Fused 9 | . 4 5 . Heat Flow Errors 6 | . 1 5 . Energy Discharges 7 | . 1 6 . Data Loss (minor) 5 | . . 5 . Misfires 2 | . . 2 . Alerts 1 | . 1 . . Overload Shots . | . . . . Overflow Damage 24 | . 8 16 . Projectiles . | . . . . Explosions 24 | . 8 16 . Melee . | . . . . Knockbacks . | . . . . Impact . | . . . . Kinetic . | . . . . Secondary . | . . . . Self-Inflicted Damage 71 | . . 71 . Shots 4 | . . 4 . Rammed . | . . . . Targets Rammed . | . . . . Kicked . | . . . . Crushed . | . . . . Highest Temperature 257 | . 158 257 26 Average Temperature 76 | . 52 128 19 Received Heat Transfer 519 | . 396 81 42 Siege Activations . | . . . . Martial Activations . | . . . . Shielding Activations . | . . . . Robots Disrupted . | . . . . Combat Hostiles . | . . . . Robots Corrupted . | . . . . Combat Hostiles . | . . . . Parts Fried . | . . . . Impact Corruptions . | . . . . Robots Melted . | . . . . Combat Hostiles . | . . . . Parts Melted . | . . . . Heat Transferred . | . . . . Parts Sabotaged . | . . . . Parts Stolen . | . . . . Parts Stripped . | . . . . Power Chain Reactions . | . . . . Alert | -11 -10 -10 -7 ------- Run | Yrd Mat Sub Rec Maximum Alert Level . | . . . . Low Security (%) 100 | 100 100 . 100 Level 1 . | . . . . Level 2 . | . . . . Level 3 . | . . . . Level 4 . | . . . . Level 5 . | . . . . High Security . | . . . . Max Security . | . . . . Peak Influence 109 | 10 109 . 33 Initial 14 | . . . 14 Average 42 | 3 47 . 26 Influence Increases 727 | 35 548 125 19 Destroy 0b10 Robot/C 340 | . 300 40 . Destroy 0b10 Robot/NC 80 | 35 45 . . Destroy Leader 100 | . 90 10 . Successful Hack 33 | . 33 . . Destroy Structure 24 | . 5 . 19 Lose Combat Pursuer 150 | . 75 75 . Influence Decreases 694 | 35 471 171 17 Entered New Map 54 | . . 37 17 Time Decay 580 | 35 451 94 . Lost Part 60 | . 20 40 . Squads Dispatched 4 | . 4 . . Investigation 2 | . 2 . . Extermination . | . . . . Reinforcement 2 | . 2 . . Assault . | . . . . Garrison . | . . . . Intercept . | . . . . Searches Triggered . | . . . . Construction Impeded . | . . . . Haulers Reinforced . | . . . . Active Scanning Responses . | . . . . Cargo Convoy Interrupts . | . . . . Stealth | -11 -10 -10 -7 --------- Run | Yrd Mat Sub Rec Distress Signals 3 | . 3 . . Communications Jammed . | . . . . Distress Signals . | . . . . Times Spotted 42 | . 24 16 2 Peak Tracking Total 6 | . 4 6 2 Tactical Retreats 8 | . 4 4 . Traps | -11 -10 -10 -7 ------- Run | Yrd Mat Sub Rec Traps Triggered 5 | . 5 . . Indirectly . | . . . . Trap Hack Attempts . | . . . . Triggered . | . . . . Disarmed . | . . . . Reprogrammed . | . . . . Reused 1 | . . 1 . Traps Extracted . | . . . . Installed 1 | . . 1 . Triggered . | . . . . Most Traps Carried 1 | . . 1 . Machines | -11 -10 -10 -7 ---------- Run | Yrd Mat Sub Rec Machines Disabled 1 | . 1 . . Max in Single Turn 1 | . 1 . . Machines Repaired . | . . . . Machines Dismantled . | . . . . Machines Sabotaged . | . . . . Overloaded Fab Kills . | . . . . Hacking | -11 -10 -10 -7 --------- Run | Yrd Mat Sub Rec Machines Accessed 7 | . 7 . . Terminals 7 | . 7 . . Fabricators . | . . . . Repair Stations . | . . . . Recycling Units . | . . . . Scanalyzers . | . . . . Garrison Access . | . . . . Total Hacks 32 | . 32 . . Successful 15 | . 15 . . Failed 16 | . 16 . . Catastrophic 1 | . 1 . . Database Lockouts 1 | . 1 . . Manual 30 | . 30 . . Terminals 32 | . 32 . . Fabricators . | . . . . Repair Stations . | . . . . Recycling Units . | . . . . Scanalyzers . | . . . . Garrison Access . | . . . . Terminal Hacks 9 | . 9 . . Robot Analysis 8 | . 8 . . Reprogram Traps 1 | . 1 . . Fabricator Hacks . | . . . . Repair Station Hacks . | . . . . Recycling Unit Hacks . | . . . . Scanalyzer . | . . . . Garrison Access Hacks . | . . . . Unauthorized Hacks 6 | . 6 . . Terminals 6 | . 6 . . Botnet 6 | . 6 . . Fabricators . | . . . . Repair Stations . | . . . . Recycling Units . | . . . . Scanalyzers . | . . . . Garrison Access . | . . . . Data Cores Recovered . | . . . . Used . | . . . . Hacking Detections 7 | . 7 . . Full Trace Events 1 | . 1 . . Feedback Events . | . . . . Feedback Blocked . | . . . . Robot Schematics Acquired . | . . . . Robots Built . | . . . . Authchips . | . . . . Time . | . . . . Total Robot Build Rating . | . . . . Part Schematics Acquired . | . . . . Parts Built . | . . . . Authchips . | . . . . Time . | . . . . Total Part Build Rating . | . . . . Parts Repaired . | . . . . Time . | . . . . Parts Recycled . | . . . . Recycled Matter . | . . . . Retrieved Matter . | . . . . Retrieved Components . | . . . . Parts Scanalyzed . | . . . . Part Schematics Acquired . | . . . . Parts Damaged . | . . . . Bothacking | -11 -10 -10 -7 ------------ Run | Yrd Mat Sub Rec Used RIF Installer . | . . . . Robots Hacked . | . . . . Non-combat . | . . . . Combat . | . . . . Robot Hacks Applied . | . . . . Relay Couplers Released . | . . . . Fabnet Peak Effective % . | . . . . Robots Rewired . | . . . . Allies Hacked . | . . . . Hacks Repelled . | . . . . Allies | -11 -10 -10 -7 -------- Run | Yrd Mat Sub Rec Total Allies . | . . . . Largest Group . | . . . . Highest-Rated Group . | . . . . Highest-Rated Ally . | . . . . Total Orders . | . . . . Ally Attacks . | . . . . Total Damage . | . . . . Kills . | . . . . Allies Corrupted . | . . . . Allies Melted . | . . . . Intel | -11 -10 -10 -7 ------- Run | Yrd Mat Sub Rec Active Infowar (turns) 2410 | 71 1178 1161 . Terrain 2410 | 71 1178 1161 . Robot Analysis Total 8 | . 8 . . Derelict Logs Recovered . | . . . . Drone Launches . | . . . . Drone Recoveries . | . . . . Exploration | -11 -10 -10 -7 ------------- Run | Yrd Mat Sub Rec Turns Passed 3072 | 149 1386 1531 6 Spaces Moved 1575 | 44 700 830 1 Core 2 | 2 . . . Treads 1573 | 42 700 830 1 Legs . | . . . . Wheels . | . . . . Hover . | . . . . Flight . | . . . . Fastest Speed 50 | 50 160 160 160 Average Speed 159 | 155 160 160 160 Slowest Speed 160 | 160 160 160 160 Overloaded Moves . | . . . . Propulsion Burnouts . | . . . . Robots Hopped . | . . . . Potential Cave-ins . | . . . . Cave-ins Triggered . | . . . . Exploration Rate (%) 39 | 5 97 51 3 Regions Visited 3 Branch Regions 2 Pre-discovered Areas 1 | . . 1 . Known Exits Taken . | . . . . Unknown Exits Taken 3 | 1 1 1 . Scrap Searched 5 | . . 5 . Spaces Dug 35 | . . 15 20 Terrain Destroyed 146 | . 4 107 35 Melee . | . . . . Projectile 1 | . . 1 . AOE 145 | . 4 106 35 Terrain Rammed . | . . . . Walls Destroyed . | . . . . Machines Disabled . | . . . . Actions | -11 -10 -10 -7 --------- Run | Yrd Mat Sub Rec Total 1853 | 77 820 953 3 Wait 40 | . 12 28 . Move 1572 | 43 699 829 1 Hop . | . . . . Pick Up 29 | 2 16 11 . Fast Attach 9 | 7 1 1 . Attach 7 | . 2 5 . Detach . | . . . . Swap 27 | 1 6 20 . Drop 12 | . 5 7 . Fire 156 | 24 79 51 2 Melee . | . . . . Ram . | . . . . Kick . | . . . . Crush . | . . . . Escape Stasis . | . . . . Rewire . | . . . . Trap 1 | . . 1 . Miscellaneous . | . . . . Route ------- -11/Scrapyard -10/Materials (discovered 6 exits: [*Mat x3] / [*Min x2] / [*Sub]) -10/Subcaves (discovered 2 exits: [*Mat] / [*Rec]) -7/Recycling History --------- Turn | Location | Event 4 | -11/Scrapyard | Discovered new exit (range 16) 150 | -11/Scrapyard | Entered Materials 262 | -10/Materials | Discovered new exit (range 8) 303 | -10/Materials | Build established: Mutant 432 | -10/Materials | Discovered new exit (range 15) 482 | -10/Materials | Discovered new exit (range 14) 885 | -10/Materials | Discovered new exit (range 16) 1194 | -10/Materials | Discovered new exit (range 16) 1475 | -10/Materials | Central database locked down 1527 | -10/Materials | Discovered new exit (range 6) 1536 | -10/Materials | Entered Subcaves 1539 | -10/Subcaves | A swath of the cavern ceiling suddenly collapsed 1543 | -10/Subcaves | Ambushed by Subdwellers from Twisted Machinery 1601 | -10/Subcaves | Lost 3 parts (1p1n1u) 1707 | -10/Subcaves | Core integrity fell below 50% 2289 | -10/Subcaves | Discovered new exit (range 9) 2403 | -10/Subcaves | Shifting Twisted Machinery released Sub. Monowheel 2445 | -10/Subcaves | Shifting Twisted Machinery released Barrage Gun 2459 | -10/Subcaves | Shifting Twisted Machinery released Sub. Monowheel 2530 | -10/Subcaves | Learned location of Zion (-7) 2530 | -10/Subcaves | Met a Zionite searching for "candidates" 2642 | -10/Subcaves | Core integrity fell below 20% 2791 | -10/Subcaves | A swath of the cavern ceiling suddenly collapsed 2953 | -10/Subcaves | Ambushed by Subdweller buried in earth 3052 | -10/Subcaves | Discovered new exit (range 11) 3067 | -10/Subcaves | Entered Recycling 3073 | -7/Recycling | Destroyed by Y-54 Guardian with Gatling Laser Last Messages --------------- Grenade Launcher. 02925_ System corrupted: Grenade Launcher misfires. 02944_ Subatomizers dissect the Disposable Heat Sink. 02953_ Grenade Launcher destroyed. 02953_ Destroyed Grenade Launcher. 02954_ UT-GW8(R): "GOODGOOD!" 02956_ S-10 Pest destroyed. 02957_ Subatomizers dissect the Disposable Heat Sink. 02960_ S-10 Pest destroyed. 02972_ Destroyed Flight Unit. 02973_ Lgt. Assault Rifle fries itself beyond repair. 02978_ S-10 Pest suffers critical hit (Destroy). 02978_ S-10 Pest destroyed. 02995_ Acquired 6 matter. 03000_ Acquired 13 matter. 03017_ System corrupted: Matter fused (-9). 03052_ EXIT=FOUND LOCATION=UNKNOWN GOAL=ESCAPE 03069_ Y-54 Guardian springs to life. Map ----- +----------------------------------------------------+ | ???????????????????????????????? | | ???????????????????????????????? | | ???????????????????????????????? | | ???????????????????????????????? | | ???????????????????????????????? | | ???????????????????????????????? | | ???????????????????????????????? | | ???????????????????????????????? | | ???????????????????????????????? | | ??????? ?????????????????????? | | ??????? ?????????????????????? | | ??????? "????????????????????? | | ??????# #????????????????????? | | ??????# #????????????????????? | | ?????## #####????????????????? | | ?????# ; #????????????????? | | ?????# #????????????????? | | ?????# #????????????????? | | ?????# #????????????????? | | ????##; #????????????????? | | ?????;Y #?????????????????? | | ?????;; Y;#??????????????????? | | ??????; #???????????????????? | | ??????; #????????????????????? | | ??????# #????????????????????? | | ??????#@ #????????????????????? | | ??????#####????????????????????? | | ???????????????????????????????? | | ???????????????????????????????? | | ???????????????????????????????? | | ???????????????????????????????? | | ???????????????????????????????? | | ???????????????????????????????? | | | | | | | | | | | | | | | | | | | | | | | | | | | | | | | | | | | +----------------------------------------------------+ Best States ------------- Heat Dissipation 25 Energy Generation 15 Energy Capacity 250 Matter Stores 300 Matter Capacity 300 Sight Range 16 Terrain Scan Range 16 Terrain Scan Density 10 Armor Coverage 150 Weapon Shielding 33 Evasion (%) 40 Recoil Reduction 2 Item Schematics ----------------- None Robot Schematics ------------------ None Fabricated ------------ Nothing Repaired ---------- Nothing Alien Tech Used ----------------- None Achievements -------------- None Challenges ------------ None Game ------ Seed PointyProtonBeam Manual? 0 Play Time 00:15:14 Cumulative 258.4 hours Start 2025.06.07 @ 13:15:07 End 2025.06.07 @ 13:30:05 Sessions 1 Manual Loads 0 Difficulty Rogue Special Mode None Game No. 161 Rogue 161 Adventurer 0 Explorer 0 Win Type - Total 3 Types 1/0/1/1/0/0/0/0/0/0 Lore% 80 Gallery% 66 Achievement% 63 Wizard Run 0 Options --------- Layout 2 ASCII 0 Keyboard 1 Movement Vi Keybinds 0 Fullscreen 1 Font 16/Tamsyn Map View 55x47 Zoom Use 0% Tactical HUD 1 Map Filters NONE Filters NONE Steam 0 RUN: eb621626-a5b0-4178-9b5f-9b115399cb22